[Event "Condigne Dutch Open 2018"]
[Site "Dieren"]
[Date "2018.07.25"]
[Round "2"]
[White "Beukema, Jasper"]
[Black "Van Helvoort, Rob"]
[Result "0-1"]
[ECO "B06"]
[WhiteElo "2299"]
[BlackElo "2119"]
[Annotator "NA"]
[PlyCount "168"]
[EventDate "2018.07.24"]
[EventType "swiss"]
[EventCountry "NED"]
[SourceTitle "playchess.com"]
[Source "ChessBase"]
[SourceQuality "1"]
[TimeControl "40/5400+30:1800+30"]

1. d4 {[%emt 0:00:00]} g6 {[%emt 0:00:00]} 2. Nf3 {[%emt 0:00:00]} Bg7 {[%emt 0:00:00]} 3. e4 {[%emt 0:00:04]} d6 {[%emt 0:00:20]} 4. Bc4 {[%emt 0:00:41]} e6 {[%emt 0:00:35]} 5. Nc3 {[%emt 0:00:23]} a6 {[%emt 0:00:15]} 6. a4 {[%emt 0:00:26]} b6 {[%emt 0:00:03]} 7. O-O {[%emt 0:00:22]} h6 {[%emt 0:00:32]} 8. Be3 {[%emt 0:01:51]} Ne7 {[%emt 0:04:16]} 9. Qd2 {[%emt 0:01:33]} Nd7 {[%emt 0:01:55]} 10. Ne1 {[%emt 0:00:54]} Bb7 {[%emt 0:00:36]} 11. f3 {[%emt 0:08:16]} d5 {[%emt 0:23:28]} 12. Be2 {[%emt 0:04:30]} c5 {[%emt 0:03:58]} 13. exd5 {[%emt 0:03:22]} ({Better is} 13. a5 $11) 13... exd5 $17 {[%emt 0:00:49]} 14. Bf2 {[%emt 0:03:30]} O-O {[%emt 0:04:15]} 15. a5 {[%emt 0:01:47]} cxd4 {[%emt 0:03:10]} 16. Bxd4 {[%emt 0:00:22]} Bxd4+ {[%emt 0:00:11]} 17. Qxd4 {[%emt 0:00:27]} Nf5 {[%emt 0:11:52]} 18. Qd2 {[%emt 0:01:39]} d4 {[%emt 0:03:22]} 19. Nd1 {[%emt 0:01:40]} Re8 {[%emt 0:03:36]} 20. Rf2 {[%emt 0:15:38]} Nf6 {[%emt 0:08:57]} 21. Ra3 {[%emt 0:03:27]} bxa5 {[%emt 0:05:55]} 22. Rxa5 {[%emt 0:03:02]} Qb6 {[%emt 0:02:26]} 23. b3 {[%emt 0:13:22]} Ne3 {[%emt 0:04:45]} 24. Nb2 {[%emt 0:01:55]} Rad8 {[%emt 0:02:01]} 25. Na4 {[%emt 0:00:40]} Qc7 {[%emt 0:03:46]} 26. Nc5 {[%emt 0:02:40]} Rd6 {[%emt 0:00:11]} 27. Ned3 {[%emt 0:01:19]} Bc8 {[%emt 0:01:14]} 28. Ra2 {[%emt 0:02:17]} Rc6 {[%emt 0:00:46]} 29. Qb4 {[%emt 0:04:16]} Nf5 {[%emt 0:01:42]} 30. Bf1 {[%emt 0:16:12]} Nd5 {[%emt 0:00:41]} 31. Qc4 {[%emt 0:01:42]} Nde3 {[%emt 0:00:22]} 32. Qa4 {[%emt 0:00:39]} Rd8 {[%emt 0:01:04]} 33. Qa3 {[%emt 0:02:02]} Nd1 {[%emt 0:00:29]} 34. Rd2 {[%emt 0:00:25]} Nc3 {[%emt 0:00:17]} 35. Ra1 {[%emt 0:00:09]} Ne3 {[%emt 0:00:39]} 36. Rf2 {[%emt 0:02:19]} Ned1 {[%emt 0:01:35]} 37. Rd2 {[%emt 0:01:15]} Ne3 {[%emt 0:00:04]} 38. Re1 {[%emt 0:01:45]} Nb5 {[%emt 0:00:15]} 39. Qa1 {[%emt 0:01:04]} Nxf1 {[%emt 0:00:15]} 40. Kxf1 {[%emt 0:01:14]} Rxc5 {[%emt 0:01:18]} 41. Nxc5 {[%emt 0:01:53]} Qxc5 {[%emt 0:00:07]} 42. Qa5 {[%emt 0:01:30]} Rf8 {[%emt 0:02:34]} 43. Re4 {[%emt 0:01:25]} Qc3 {[%emt 0:08:40]} 44. Qxc3 {[%emt 0:01:30]} dxc3 {[%emt 0:00:02]} 45. Rde2 {[%emt 0:00:38]} Bb7 {[%emt 0:05:41]} 46. Re8 {[%emt 0:05:18]} Bd5 {[%emt 0:03:26]} 47. R2e7 {[%emt 0:09:47]} Be6 {[%emt 0:08:56]} 48. g4 {[%emt 0:03:32]} Nd4 {[%emt 0:04:32]} 49. Rxf8+ {[%emt 0:00:24]} Kxf8 {[%emt 0:00:06]} 50. Rc7 {[%emt 0:00:03]} Nxc2 {[%emt 0:01:41]} 51. Rxc3 {[%emt 0:01:00]} Nd4 {[%emt 0:00:07]} 52. b4 {[%emt 0:00:28]} Bd7 {[%emt 0:00:19]} 53. Kf2 {[%emt 0:02:31]} Bb5 {[%emt 0:00:27]} 54. Ke3 {[%emt 0:00:25]} Nc6 {[%emt 0:00:11]} 55. Rb3 {[%emt 0:00:04]} Ke7 {[%emt 0:00:11]} 56. Rb2 {[%emt 0:01:14]} Ke6 {[%emt 0:00:32]} 57. f4 {[%emt 0:03:09]} f5 {[%emt 0:02:56]} 58. h3 {[%emt 0:01:19]} Ne7 {[%emt 0:00:34]} 59. Rb1 {[%emt 0:00:49]} Nd5+ {[%emt 0:00:35]} 60. Kf3 {[%emt 0:00:05]} Bd3 {[%emt 0:00:57]} 61. Rb3 {[%emt 0:00:12]} Bc4 {[%emt 0:00:27]} 62. Rb1 {[%emt 0:00:17]} Nf6 {[%emt 0:00:44]} 63. Re1+ {[%emt 0:01:20]} Ne4 {[%emt 0:00:31]} 64. Ke3 {[%emt 0:00:17]} Kd5 {[%emt 0:01:45]} 65. gxf5 {[%emt 0:01:53]} gxf5 {[%emt 0:00:01]} 66. Rg1 {[%emt 0:00:08]} Bb5 {[%emt 0:00:41]} 67. Rg6 {[%emt 0:02:02]} Kc4 {[%emt 0:00:05]} 68. Rxh6 {[%emt 0:00:04]} Kxb4 {[%emt 0:00:03]} 69. Rg6 {[%emt 0:00:06]} a5 {[%emt 0:00:16]} 70. h4 {[%emt 0:00:04]} a4 {[%emt 0:03:23]} 71. h5 {[%emt 0:00:05]} a3 {[%emt 0:00:05]} 72. h6 {[%emt 0:00:32]} a2 {[%emt 0:00:23]} 73. Rg1 {[%emt 0:00:10]} Nf6 {[%emt 0:00:22]} 74. Kd4 {[%emt 0:00:21]} Kb3 {[%emt 0:00:32]} 75. Ke5 {[%emt 0:00:10]} Ng4+ {[%emt 0:00:16]} 76. Kxf5 {[%emt 0:01:13]} Nxh6+ {[%emt 0:01:37]} 77. Kg6 {[%emt 0:00:47]} Bd3+ {[%emt 0:00:14]} 78. Kxh6 {[%emt 0:01:02]} Bb1 {[%emt 0:00:08]} 79. Rg3+ {[%emt 0:00:44]} Kb4 {[%emt 0:00:09]} 80. f5 {[%emt 0:00:40]} Bxf5 {[%emt 0:00:54]} 81. Rg1 {[%emt 0:00:10]} Bb1 {[%emt 0:00:04]} 82. Rg4+ {[%emt 0:00:28]} Kb5 {[%emt 0:00:06]} 83. Rg5+ {[%emt 0:00:17]} Kb6 {[%emt 0:00:05]} 84. Rg6+ {[%emt 0:00:42]} Bxg6 {[%emt 0:00:11]} 0-1

[Event "Condigne Dutch Open 2018"]
[Site "Dieren"]
[Date "2018.07.25"]
[Round "2"]
[White "Ashwath, R.."]
[Black "Lai, Hing Ting"]
[Result "1/2-1/2"]
[ECO "E13"]
[WhiteElo "2285"]
[BlackElo "2447"]
[Annotator "NA"]
[PlyCount "47"]
[EventDate "2018.07.24"]
[EventType "swiss"]
[EventCountry "NED"]
[SourceTitle "playchess.com"]
[Source "ChessBase"]
[SourceQuality "1"]
[TimeControl "40/5400+30:1800+30"]

1. d4 {[%emt 0:00:09]} Nf6 {[%emt 0:00:00]} 2. c4 {[%emt 0:00:10]} e6 {[%emt 0:00:00]} 3. Nc3 {[%emt 0:00:05]} Bb4 {[%emt 0:00:00]} 4. Nf3 {[%emt 0:00:05]} b6 {[%emt 0:00:02]} 5. Bg5 {[%emt 0:00:34]} Bb7 {[%emt 0:00:07]} 6. Qc2 {[%emt 0:00:30]} h6 {[%emt 0:01:09]} 7. Bh4 {[%emt 0:00:15]} g5 {[%emt 0:01:37]} 8. Bg3 {[%emt 0:00:13]} Ne4 {[%emt 0:00:07]} 9. Nd2 {[%emt 0:00:25]} Bxc3 {[%emt 0:00:14]} 10. bxc3 {[%emt 0:00:22]} Nxg3 {[%emt 0:00:08]} 11. hxg3 {[%emt 0:00:13]} Qe7 {[%emt 0:00:35]} 12. e4 {[%emt 0:06:56]} d6 {[%emt 0:00:29]} 13. Bd3 {[%emt 0:02:52]} Nd7 {[%emt 0:00:46]} 14. Qa4 {[%emt 0:02:39]} a6 {[%emt 0:02:45]} 15. Rb1 {[%emt 0:04:12]} Kf8 {[%emt 0:07:20]} 16. O-O {[%emt 0:05:44]} h5 {[%emt 0:09:00]} 17. f4 {[%emt 0:15:09]} g4 {[%emt 0:01:13]} 18. Qd1 {[%emt 0:07:08]} Rh6 {[%emt 0:21:48]} 19. Qe2 {[%emt 0:01:47]} Kg7 {[%emt 0:03:22]} 20. e5 {[%emt 0:06:53]} f5 {[%emt 0:00:19]} 21. exf6+ {[%emt 0:10:20]} Nxf6 {[%emt 0:00:09]} 22. Rbe1 {[%emt 0:15:22]} Re8 {[%emt 0:01:28]} 23. f5 {[%emt 0:01:45]} e5 {[%emt 0:02:00]} 24. Qe3 {[%emt 0:02:07]} 1/2-1/2

[Event "Condigne Dutch Open 2018"]
[Site "Dieren"]
[Date "2018.07.25"]
[Round "2"]
[White "Evengroen, Henk-Jan"]
[Black "Hendriks, Willy"]
[Result "1/2-1/2"]
[ECO "B22"]
[WhiteElo "2160"]
[BlackElo "2417"]
[Annotator "NA"]
[PlyCount "46"]
[EventDate "2018.07.24"]
[EventType "swiss"]
[EventCountry "NED"]
[SourceTitle "playchess.com"]
[Source "ChessBase"]
[SourceQuality "1"]
[TimeControl "40/5400+30:1800+30"]

1. e4 {[%emt 0:00:00]} c5 {[%emt 0:00:00]} 2. Nf3 {[%emt 0:00:00]} e6 {[%emt 0:00:00]} 3. c3 {[%emt 0:00:03]} d5 {[%emt 0:00:16]} 4. exd5 {[%emt 0:00:12]} exd5 {[%emt 0:00:09]} 5. d4 {[%emt 0:00:22]} Nc6 {[%emt 0:00:08]} 6. Be2 {[%emt 0:00:51]} Bd6 {[%emt 0:04:07]} 7. dxc5 {[%emt 0:03:01]} Bxc5 {[%emt 0:00:11]} 8. O-O {[%emt 0:00:32]} Nge7 {[%emt 0:02:16]} 9. Nbd2 {[%emt 0:00:58]} O-O {[%emt 0:00:18]} 10. Nb3 {[%emt 0:00:34]} Bb6 {[%emt 0:01:34]} 11. Nbd4 {[%emt 0:05:00]} Nf5 {[%emt 0:04:56]} 12. Bg5 {[%emt 0:08:07]} f6 {[%emt 0:02:20]} 13. Bf4 {[%emt 0:00:37]} Bxd4 $11 {[%emt 0:23:10]} 14. Nxd4 {[%emt 0:03:39]} Ncxd4 {[%emt 0:18:09]} 15. cxd4 {[%emt 0:00:45]} Qb6 {[%emt 0:00:08]} 16. Bd3 {[%emt 0:18:11]} Qxb2 {[%emt 0:13:18]} 17. Rb1 {[%emt 0:06:20]} Qxd4 {[%emt 0:11:52]} 18. Bd6 {[%emt 0:17:46]} Rd8 {[%emt 0:00:54]} 19. Rb4 {[%emt 0:00:27]} Rxd6 {[%emt 0:00:58]} 20. Rxd4 {[%emt 0:00:15]} Nxd4 {[%emt 0:00:02]} 21. Bxh7+ {[%emt 0:22:39]} Kxh7 {[%emt 0:00:08]} 22. Qh5+ {[%emt 0:00:25]} Kg8 {[%emt 0:00:03]} 23. Qe8+ {[%emt 0:00:08]} Kh7 {[%emt 0:00:04]} 1/2-1/2

[Event "Condigne Dutch Open 2018"]
[Site "Dieren"]
[Date "2018.07.25"]
[Round "2"]
[White "Van Foreest, Machteld"]
[Black "Miedema, David"]
[Result "0-1"]
[ECO "C08"]
[WhiteElo "2141"]
[BlackElo "2370"]
[Annotator "NA"]
[PlyCount "98"]
[EventDate "2018.07.24"]
[EventType "swiss"]
[EventCountry "NED"]
[SourceTitle "playchess.com"]
[Source "ChessBase"]
[SourceQuality "1"]
[TimeControl "40/5400+30:1800+30"]

1. e4 {[%emt 0:00:00]} e6 {[%emt 0:05:06]} 2. d4 {[%emt 0:00:06]} d5 {[%emt 0:00:10]} 3. Nd2 {[%emt 0:00:03]} c5 {[%emt 0:00:05]} 4. exd5 {[%emt 0:00:04]} exd5 {[%emt 0:00:04]} 5. Ngf3 {[%emt 0:00:07]} Nf6 {[%emt 0:00:06]} 6. Bb5+ {[%emt 0:00:15]} Bd7 {[%emt 0:00:06]} 7. Bxd7+ {[%emt 0:00:05]} Nbxd7 {[%emt 0:00:02]} 8. O-O {[%emt 0:00:32]} Be7 {[%emt 0:00:04]} 9. dxc5 {[%emt 0:00:10]} Nxc5 {[%emt 0:00:03]} 10. Nb3 {[%emt 0:00:11]} Nce4 {[%emt 0:00:05]} 11. Nfd4 {[%emt 0:04:19]} Nd6 {[%emt 0:00:37]} 12. Bf4 {[%emt 0:04:26]} O-O {[%emt 0:02:04]} 13. c3 {[%emt 0:04:41]} Re8 {[%emt 0:06:58]} 14. Re1 {[%emt 0:02:17]} Nc4 {[%emt 0:05:38]} 15. Rb1 {[%emt 0:09:05]} Qd7 {[%emt 0:03:53]} 16. Qd3 {[%emt 0:03:42]} Bf8 $11 {[%emt 0:02:55]} 17. Rxe8 {[%emt 0:03:54]} Rxe8 {[%emt 0:00:04]} 18. Nd2 {[%emt 0:01:00]} Nd6 {[%emt 0:04:01]} 19. N2f3 {[%emt 0:03:38]} Re4 {[%emt 0:07:35]} 20. Be5 {[%emt 0:10:51]} Qe7 {[%emt 0:10:25]} 21. Bxf6 {[%emt 0:03:40]} Qxf6 {[%emt 0:00:24]} 22. Nc2 {[%emt 0:00:33]} Qg6 {[%emt 0:33:18]} 23. Rd1 {[%emt 0:13:12]} Nc4 {[%emt 0:01:01]} 24. Qxd5 {[%emt 0:05:21]} Nxb2 {[%emt 0:00:45]} 25. Rb1 {[%emt 0:01:26]} Re2 {[%emt 0:00:42]} 26. Rxb2 {[%emt 0:08:08]} Rxc2 {[%emt 0:00:07]} 27. Rb1 {[%emt 0:03:12]} Rxf2 {[%emt 0:01:19]} 28. Kxf2 {[%emt 0:01:18]} Qxb1 {[%emt 0:00:09]} 29. Ng5 {[%emt 0:02:01]} Qb6+ {[%emt 0:00:57]} 30. Kf1 {[%emt 0:05:46]} Qf6+ {[%emt 0:01:29]} 31. Kg1 {[%emt 0:00:04]} Qb6+ {[%emt 0:03:35]} 32. Kf1 {[%emt 0:00:06]} Qc7 {[%emt 0:00:23]} 33. g3 {[%emt 0:01:10]} h6 {[%emt 0:04:07]} 34. Ne4 {[%emt 0:00:16]} Qc6 {[%emt 0:01:24]} 35. Qxc6 {[%emt 0:01:30]} bxc6 {[%emt 0:00:05]} 36. Ke2 {[%emt 0:00:37]} f5 {[%emt 0:00:12]} 37. Nf2 {[%emt 0:00:18]} Kf7 {[%emt 0:01:05]} 38. Ke3 {[%emt 0:01:21]} Bc5+ {[%emt 0:00:05]} 39. Ke2 {[%emt 0:00:17]} Bxf2 {[%emt 0:00:14]} 40. Kxf2 {[%emt 0:00:04]} Ke6 {[%emt 0:00:25]} 41. Ke3 {[%emt 0:30:46]} Ke5 {[%emt 0:30:29]} 42. a4 {[%emt 0:00:31]} a5 {[%emt 0:00:20]} 43. Kd3 {[%emt 0:00:13]} g5 {[%emt 0:00:05]} 44. Ke3 {[%emt 0:00:09]} Kd5 {[%emt 0:00:58]} 45. Kd3 {[%emt 0:00:13]} Kc5 {[%emt 0:00:16]} 46. Kd2 {[%emt 0:00:15]} Kc4 {[%emt 0:00:05]} 47. Kc2 {[%emt 0:00:05]} h5 {[%emt 0:00:20]} 48. h3 {[%emt 0:00:06]} f4 {[%emt 0:00:35]} 49. gxf4 {[%emt 0:00:07]} gxf4 {[%emt 0:00:03]} 0-1

[Event "Condigne Dutch Open 2018"]
[Site "Dieren"]
[Date "2018.07.25"]
[Round "2"]
[White "Polak, Alexander"]
[Black "Van Osch, Mees"]
[Result "0-1"]
[ECO "C11"]
[WhiteElo "2136"]
[BlackElo "2324"]
[Annotator "NA"]
[PlyCount "82"]
[EventDate "2018.07.24"]
[EventType "swiss"]
[EventCountry "NED"]
[SourceTitle "playchess.com"]
[Source "ChessBase"]
[SourceQuality "1"]
[TimeControl "40/5400+30:1800+30"]

1. e4 {[%emt 0:01:37]} e6 {[%emt 0:00:00]} 2. d4 {[%emt 0:00:03]} d5 {[%emt 0:00:00]} 3. Nc3 {[%emt 0:00:04]} Nf6 {[%emt 0:00:00]} 4. e5 {[%emt 0:00:05]} Nfd7 {[%emt 0:00:00]} 5. f4 {[%emt 0:00:04]} c5 {[%emt 0:00:00]} 6. Nf3 {[%emt 0:00:04]} Nc6 {[%emt 0:00:00]} 7. Be3 {[%emt 0:00:04]} cxd4 {[%emt 0:00:00]} 8. Nxd4 {[%emt 0:00:04]} Bc5 {[%emt 0:00:00]} 9. Qd2 {[%emt 0:00:19]} O-O {[%emt 0:00:02]} 10. O-O-O {[%emt 0:00:15]} a6 {[%emt 0:00:05]} 11. Kb1 {[%emt 0:02:10]} Nxd4 {[%emt 0:00:20]} 12. Bxd4 {[%emt 0:00:06]} b5 {[%emt 0:00:02]} 13. Qe3 {[%emt 0:01:30]} Qc7 {[%emt 0:12:25]} 14. Bd3 {[%emt 0:03:01]} b4 {[%emt 0:00:33]} 15. Ne2 {[%emt 0:02:23]} a5 {[%emt 0:01:04]} 16. Qh3 {[%emt 0:03:40]} g6 {[%emt 0:00:42]} 17. Qe3 {[%emt 0:08:15]} a4 {[%emt 0:01:48]} 18. Rc1 {[%emt 0:01:51]} Ba6 {[%emt 0:26:33]} 19. h4 {[%emt 0:02:14]} Bxd4 {[%emt 0:00:22]} 20. Nxd4 {[%emt 0:00:05]} a3 {[%emt 0:01:05]} 21. Nb3 {[%emt 0:22:11]} axb2 {[%emt 0:03:20]} 22. Rcd1 {[%emt 0:00:13]} Nb6 {[%emt 0:01:52]} 23. h5 {[%emt 0:02:10]} Na4 {[%emt 0:00:47]} 24. hxg6 {[%emt 0:00:46]} Nc3+ {[%emt 0:00:29]} 25. Kxb2 {[%emt 0:00:05]} Nxd1+ {[%emt 0:08:39]} 26. Rxd1 {[%emt 0:00:05]} fxg6 {[%emt 0:00:17]} 27. Qc5 {[%emt 0:02:42]} Qxc5 {[%emt 0:08:43]} 28. Nxc5 {[%emt 0:00:06]} Bxd3 {[%emt 0:00:05]} 29. Nxd3 {[%emt 0:00:10]} Rac8 {[%emt 0:01:34]} 30. g3 {[%emt 0:00:35]} Rc4 {[%emt 0:00:21]} 31. Kb3 {[%emt 0:00:59]} Rb8 {[%emt 0:02:27]} 32. Kb2 {[%emt 0:01:04]} Rbc8 {[%emt 0:00:37]} 33. Rd2 {[%emt 0:00:15]} Rd4 {[%emt 0:02:10]} 34. Rh2 {[%emt 0:00:35]} Kg7 {[%emt 0:02:08]} 35. Rh3 {[%emt 0:01:13]} Re4 {[%emt 0:00:38]} 36. Kb3 {[%emt 0:00:30]} Re3 {[%emt 0:04:08]} 37. Kxb4 {[%emt 0:00:33]} Rxc2 {[%emt 0:01:11]} 38. Nc5 {[%emt 0:00:07]} Rb2+ {[%emt 0:00:06]} 39. Ka4 {[%emt 0:00:05]} Rxa2+ {[%emt 0:00:08]} 40. Kb5 {[%emt 0:00:08]} Rb2+ {[%emt 0:00:24]} 41. Kc6 {[%emt 0:30:08]} Rc3 {[%emt 0:30:38]} 0-1

[Event "Condigne Dutch Open 2018"]
[Site "Dieren"]
[Date "2018.07.25"]
[Round "2"]
[White "Bruil, Rembrandt"]
[Black "Rajesh, V A V"]
[Result "1-0"]
[ECO "D90"]
[WhiteElo "2126"]
[BlackElo "2309"]
[Annotator "NA"]
[PlyCount "79"]
[EventDate "2018.07.24"]
[EventType "swiss"]
[EventCountry "NED"]
[SourceTitle "playchess.com"]
[Source "ChessBase"]
[SourceQuality "1"]
[TimeControl "40/5400+30:1800+30"]

1. d4 {[%emt 0:00:00]} Nf6 {[%emt 0:00:00]} 2. c4 {[%emt 0:00:00]} g6 {[%emt 0:00:00]} 3. Nc3 {[%emt 0:00:00]} d5 {[%emt 0:00:00]} 4. Nf3 {[%emt 0:00:00]} Bg7 {[%emt 0:00:00]} 5. h4 {[%emt 0:00:00]} h6 {[%emt 0:02:32]} 6. e3 {[%emt 0:06:53]} c6 {[%emt 0:02:32]} 7. cxd5 {[%emt 0:06:05]} cxd5 {[%emt 0:05:20]} 8. Qb3 {[%emt 0:03:43]} O-O {[%emt 0:01:17]} 9. Bd3 {[%emt 0:03:13]} Nc6 {[%emt 0:01:57]} 10. Bd2 {[%emt 0:03:42]} Qd6 {[%emt 0:01:14]} 11. Nb5 {[%emt 0:03:44]} Qb8 {[%emt 0:00:35]} 12. Rc1 {[%emt 0:07:55]} Bg4 {[%emt 0:01:47]} 13. Ne5 {[%emt 0:02:15]} Nxe5 {[%emt 0:12:16]} 14. dxe5 {[%emt 0:00:20]} Qxe5 {[%emt 0:00:08]} 15. Bc3 {[%emt 0:00:40]} Qh5 {[%emt 0:04:18]} 16. Nd4 {[%emt 0:07:37]} e5 {[%emt 0:15:17]} 17. Ne2 {[%emt 0:00:06]} Bxe2 {[%emt 0:00:53]} 18. Bxe2 {[%emt 0:00:05]} Qf5 {[%emt 0:00:04]} 19. Qxb7 {[%emt 0:00:49]} Rfb8 {[%emt 0:05:07]} 20. Qc6 {[%emt 0:02:33]} Rc8 {[%emt 0:00:37]} 21. Qa4 {[%emt 0:03:08]} Ne4 {[%emt 0:10:52]} 22. O-O {[%emt 0:01:38]} Nxc3 {[%emt 0:01:25]} 23. bxc3 {[%emt 0:00:27]} e4 {[%emt 0:00:05]} 24. Ba6 {[%emt 0:06:55]} Rc7 {[%emt 0:06:46]} 25. Rfd1 {[%emt 0:05:37]} Rb8 {[%emt 0:06:18]} 26. c4 {[%emt 0:14:35]} Rb2 {[%emt 0:01:14]} 27. Rc2 {[%emt 0:00:25]} Rxc2 {[%emt 0:06:21]} 28. Qxc2 {[%emt 0:00:09]} d4 {[%emt 0:00:46]} 29. Qb3 {[%emt 0:10:58]} Rc6 {[%emt 0:05:07]} 30. Qb5 {[%emt 0:04:10]} Qe6 {[%emt 0:02:57]} 31. Bb7 {[%emt 0:03:54]} Rb6 {[%emt 0:01:29]} 32. Qd5 {[%emt 0:00:11]} Qg4 {[%emt 0:04:25]} 33. Rf1 {[%emt 0:02:15]} d3 {[%emt 0:00:25]} 34. c5 {[%emt 0:01:11]} Rb2 {[%emt 0:02:01]} 35. c6 {[%emt 0:00:12]} Qe2 {[%emt 0:00:46]} 36. g3 {[%emt 0:00:32]} Be5 {[%emt 0:00:36]} 37. Qxe5 {[%emt 0:00:22]} Qxf1+ {[%emt 0:00:07]} 38. Kxf1 {[%emt 0:00:05]} Rb1+ {[%emt 0:00:03]} 39. Kg2 {[%emt 0:00:04]} d2 {[%emt 0:00:09]} 40. c7 {[%emt 0:00:12]} 1-0

[Event "Condigne Dutch Open 2018"]
[Site "Dieren"]
[Date "2018.07.26"]
[Round "3"]
[White "Van den Doel, Erik"]
[Black "Warmerdam, Max"]
[Result "1/2-1/2"]
[ECO "A13"]
[WhiteElo "2593"]
[BlackElo "2424"]
[Annotator "ChessBase"]
[PlyCount "160"]
[EventDate "2018.07.24"]
[EventType "swiss"]
[EventCountry "NED"]
[SourceTitle "playchess.com"]
[Source "ChessBase"]
[SourceQuality "1"]
[TimeControl "40/5400+30:1800+30"]

1. d4 {[%emt 0:00:00]} Nf6 {[%emt 0:01:39]} 2. Nf3 {[%emt 0:00:00]} e6 {[%emt 0:01:55]} 3. e3 {[%emt 0:14:42]} c5 {[%emt 0:01:52]} 4. Bd3 {[%emt 0:01:26]} d5 {[%emt 0:01:05]} 5. b3 {[%emt 0:00:47]} Be7 {[%emt 0:13:59]} 6. O-O {[%emt 0:00:22]} O-O {[%emt 0:00:14]} 7. Bb2 {[%emt 0:01:47]} Nc6 {[%emt 0:01:13]} 8. c4 {[%emt 0:01:35]} cxd4 {[%emt 0:03:29]} 9. exd4 {[%emt 0:01:35]} b6 {[%emt 0:05:15]} 10. Nbd2 {[%emt 0:03:24]} Ba6 {[%emt 0:13:04]} 11. Rc1 {[%emt 0:08:02]} Rc8 {[%emt 0:01:46]} 12. Qe2 {[%emt 0:02:07]} Nd7 {[%emt 0:19:42]} 13. Rfd1 {[%emt 0:03:16]} Bf6 {[%emt 0:07:56]} 14. Nf1 {[%emt 0:01:43]} Re8 {[%emt 0:04:55]} 15. Ne3 {[%emt 0:06:21]} dxc4 {[%emt 0:02:05]} 16. bxc4 {[%emt 0:14:14]} g6 {[%emt 0:00:36]} 17. Bc3 {[%emt 0:17:21]} Ne7 {[%emt 0:05:06]} 18. Qb2 {[%emt 0:04:09]} Bg7 {[%emt 0:00:19]} 19. Be2 {[%emt 0:01:32]} Qc7 {[%emt 0:01:01]} 20. Qa3 {[%emt 0:00:40]} Qb7 {[%emt 0:01:34]} 21. Ng5 {[%emt 0:01:31]} Nb8 {[%emt 0:01:06]} 22. d5 {[%emt 0:02:35]} Nxd5 {[%emt 0:01:12]} 23. cxd5 {[%emt 0:01:30]} Bxe2 {[%emt 0:00:46]} 24. Bxg7 {[%emt 0:02:42]} Bxd1 {[%emt 0:00:06]} 25. Ba1 {[%emt 0:00:31]} Be2 {[%emt 0:00:55]} 26. Ne4 {[%emt 0:03:50]} e5 {[%emt 0:05:40]} 27. Nf6+ {[%emt 0:00:45]} Kg7 {[%emt 0:00:02]} 28. Nxe8+ {[%emt 0:00:54]} Rxe8 {[%emt 0:00:05]} 29. Qd6 {[%emt 0:00:48]} Qe7 {[%emt 0:00:10]} 30. Qxe7 {[%emt 0:00:37]} Rxe7 {[%emt 0:00:01]} 31. f4 {[%emt 0:00:38]} f6 {[%emt 0:00:42]} 32. d6 {[%emt 0:00:28]} Rd7 {[%emt 0:00:02]} 33. fxe5 {[%emt 0:00:21]} fxe5 {[%emt 0:00:05]} 34. Rc8 {[%emt 0:01:57]} Na6 {[%emt 0:00:04]} 35. Kf2 {[%emt 0:00:14]} Bb5 {[%emt 0:01:52]} 36. Bxe5+ {[%emt 0:01:09]} Kf7 {[%emt 0:00:13]} 37. Ng4 {[%emt 0:00:22]} Nc5 {[%emt 0:00:39]} 38. Ke3 {[%emt 0:01:09]} Nb7 {[%emt 0:01:48]} 39. Rc7 {[%emt 0:01:53]} Ke6 {[%emt 0:01:09]} 40. Nf6 {[%emt 0:00:16]} Rxc7 {[%emt 0:30:50]} 41. dxc7 {[%emt 0:30:04]} Bd7 {[%emt 0:00:08]} 42. Nxd7 {[%emt 0:00:00]} Kxd7 {[%emt 0:00:00]} 43. Kf4 {[%emt 0:00:00]} h6 {[%emt 0:00:00]} 44. Bg7 {[%emt 0:00:00]} Nd6 {[%emt 0:00:00]} 45. Bxh6 {[%emt 0:00:00]} Nf7 {[%emt 0:00:00]} 46. Bg7 {[%emt 0:00:00]} Kxc7 {[%emt 0:00:00]} 47. h4 {[%emt 0:00:00]} Kd7 {[%emt 0:00:00]} 48. g4 {[%emt 0:00:00]} Ke6 {[%emt 0:00:00]} 49. h5 {[%emt 0:00:00]} gxh5 {[%emt 0:00:00]} 50. gxh5 {[%emt 0:00:00]} Nd6 {[%emt 0:01:20]} 51. Be5 {[%emt 0:00:00]} Ne8 {[%emt 0:06:45]} 52. h6 {[%emt 0:04:04]} Nf6 {[%emt 0:00:02]} 53. Bb8 {[%emt 0:01:19]} a6 {[%emt 0:00:18]} 54. Bc7 {[%emt 0:00:43]} b5 {[%emt 0:00:06]} 55. Kg5 {[%emt 0:00:36]} Kf7 {[%emt 0:00:05]} 56. Kf5 {[%emt 0:00:19]} Nh7 {[%emt 0:01:35]} 57. Ba5 {[%emt 0:00:24]} Nf6 {[%emt 0:00:20]} 58. Bc3 {[%emt 0:00:11]} Nh7 {[%emt 0:00:04]} 59. Bb4 {[%emt 0:00:54]} Nf6 {[%emt 0:00:06]} 60. Bc3 {[%emt 0:00:06]} Nh7 {[%emt 0:00:04]} 61. Bd2 {[%emt 0:00:28]} Nf6 {[%emt 0:00:09]} 62. Ba5 {[%emt 0:01:30]} Nh7 {[%emt 0:00:06]} 63. Bd8 {[%emt 0:00:07]} Nf8 {[%emt 0:00:08]} 64. Bg5 {[%emt 0:00:22]} Nh7 {[%emt 0:00:04]} 65. Bc1 {[%emt 0:00:27]} b4 {[%emt 0:00:36]} 66. Ke5 {[%emt 0:00:16]} Nf6 {[%emt 0:00:13]} 67. Kd4 {[%emt 0:00:49]} Kg6 {[%emt 0:00:25]} 68. Bf4 {[%emt 0:01:30]} a5 {[%emt 0:00:08]} 69. Bd2 {[%emt 0:00:15]} Kh7 {[%emt 0:01:43]} 70. Bg5 {[%emt 0:00:08]} a4 {[%emt 0:00:25]} 71. Bc1 {[%emt 0:00:19]} Ng4 {[%emt 0:01:34]} 72. Kc4 {[%emt 0:00:22]} Ne5+ {[%emt 0:00:16]} 73. Kxb4 {[%emt 0:00:13]} Nd3+ {[%emt 0:00:05]} 74. Kxa4 {[%emt 0:00:03]} Nxc1 {[%emt 0:00:04]} 75. a3 {[%emt 0:00:01]} Nd3 {[%emt 0:01:13]} 76. Kb5 {[%emt 0:00:59]} Ne5 {[%emt 0:00:04]} 77. a4 {[%emt 0:00:30]} Nd7 {[%emt 0:00:04]} 78. a5 {[%emt 0:00:15]} Nb8 {[%emt 0:00:06]} 79. Kb6 {[%emt 0:00:04]} Kxh6 {[%emt 0:00:11]} 80. a6 {[%emt 0:00:23]} Nxa6 {[%emt 0:00:04]} 1/2-1/2